[Event "17th Paracin Open 2024"]
[Site "Paracin"]
[Date "2024.07.05"]
[Round "3.18"]
[White "Tanriverdi, Enes"]
[Black "Sakmak, Kutay"]
[Result "1-0"]
[ECO "E12"]
[WhiteElo "2371"]
[BlackElo "1993"]
[Annotator "TA"]
[PlyCount "33"]
[EventDate "2024.07.02"]
[EventType "swiss"]
[EventCountry "SRB"]
[SourceTitle "playchess.com"]
[Source "ChessBase"]
[SourceQuality "1"]
[TimeControl "5400+30"]

{[%evp 10,33,43,32,104,149,116,106,106,64,154,155,208,69,29,0,0,0,0,0,0,0,1118,1118,1032,776]} 1. d4 {[%emt 0:00:03]} Nf6 {[%emt 0:00:11]} 2. Nf3 {[%emt 0:00:17]} e6 {[%emt 0:00:07]} 3. c4 {[%emt 0:00:43]} b6 {[%emt 0:00:18]} 4. a3 {[%emt 0:00:53]} Ba6 {[%emt 0:01:55]} 5. Qc2 {[%emt 0:01:16]} c5 {[%emt 0:00:40]} 6. e4 {[%emt 0:09:52]} d5 {[%emt 0:11:47]} (6... cxd4 $14 7. e5 Ng8) 7. cxd5 $16 {[%emt 0:11:19]} Bxf1 {[%emt 0:00:16]} 8. Kxf1 {[%emt 0:00:03] Black must now prevent Bg5.} exd5 {[%emt 0:01:12] White is better.} 9. Nc3 {[%emt 0:00:04] [#] And now Bg5 would win.} dxe4 {[%emt 0:04:27]} (9... cxd4 $1 $14 10. Nxd5 (10. Nxd4 dxe4 11. Qa4+ Nbd7 $14) 10... Nxd5) 10. Nxe4 {[%emt 0:00:27]} Nbd7 {[%emt 0:05:18]} (10... Nc6 $16) 11. Bg5 {[%emt 0:04:52]} (11. Bf4 $18 {Re1 is the strong threat.} Nxe4 12. Qxe4+ Be7 13. Bc7 Qxc7 14. Qxa8+ Nb8 15. Qe4) 11... Be7 $14 {[%emt 0:00:43]} 12. d5 {[%emt 0:02:06][%cal Bd4d5,Bd5d6][%mdl 32] Hoping for d6.} Nxe4 {[%emt 0:08:55]} 13. Qxe4 {[%emt 0:00:04]} Kf8 {[%emt 0:00:05]} 14. d6 {[%emt 0:08:31]} Bxg5 {[%emt 0:02:25]} 15. Nxg5 {[%emt 0:00:02]} Nf6 {[%emt 0:01:25][%mdl 8192] Wards off Qd5} (15... h6 $11 16. Nf3 g6) 16. Qb7 $18 {[%emt 0:00:50][%csl Gg5][%cal Rb7f7] [#]} Nd7 {[%emt 0:03:19]} 17. Qd5 {[%emt 0:01:20] Weighted Error Value: White=0.34/Black=0.25 (precise) .  Loses game:     	---       	Black=1      Mistake:       	White=1     	Black=2      Inaccurate:     	White=2     	---        OK:         	---       	Black=4      Best:        	White=2     	Black=2} 1-0

[Event "17th Paracin Open 2024"]
[Site "Paracin"]
[Date "2024.07.05"]
[Round "3.19"]
[White "Zhukov, Anton"]
[Black "Khripachenko, Alexander"]
[Result "1/2-1/2"]
[ECO "D38"]
[WhiteElo "2237"]
[BlackElo "2346"]
[Annotator "TA"]
[PlyCount "29"]
[EventDate "2024.07.02"]
[EventType "swiss"]
[EventCountry "SRB"]
[SourceTitle "playchess.com"]
[Source "ChessBase"]
[SourceQuality "1"]
[TimeControl "5400+30"]

{[%evp 19,29,2,0,0,0,0,18,4,14,15,8,-11]} 1. d4 {[%emt 1:31:00]} Nf6 {[%emt 1:31:00]} 2. c4 {[%emt 0:00:30]} e6 {[%emt 0:00:30]} 3. Nf3 {[%emt 0:00:30]} d5 {[%emt 0:00:30]} 4. Nc3 {[%emt 0:00:30]} Bb4 {[%emt 0:00:30]} 5. cxd5 {[%emt 0:00:30]} exd5 {[%emt 0:00:30]} 6. Qa4+ {[%emt 0:00:30]} Nc6 {[%emt 0:00:30]} 7. Bg5 {[%emt 0:00:30]} h6 {[%emt 0:00:30]} 8. Bxf6 {[%emt 0:00:30]} Qxf6 {[%emt 0:00:30]} 9. e3 {[%emt 0:00:30]} O-O {[%emt 0:00:30]} 10. Be2 {[%emt 0:00:30]} Be6 {[%emt 0:00:30] The position is equal.} 11. a3 {[%emt 0:00:30]} Bxc3+ {[%emt 0:00:30]} 12. bxc3 {[%emt 0:00:30]} Ne7 {[%emt 0:00:30][%cal Bc6e7,Be7c8,Bc8d6][%mdl 32]} 13. O-O {[%emt 0:00:30]} Nc8 {[%emt 0:00:30]} 14. Ne5 {[%emt 0:00:30]} Nd6 {[%emt 0:00:30]} 15. Bd3 {[%emt 0:00:30] An uneventful encounter.   Weighted Error Value: White=0.04 (flawless) /Black=0.03 (flawless) .  OK:         	---       	Black=3} 1/2-1/2

[Event "17th Paracin Open 2024"]
[Site "Paracin"]
[Date "2024.07.05"]
[Round "3.20"]
[White "Pogorelskikh, Sofia"]
[Black "Prohaszka, Peter"]
[Result "0-1"]
[ECO "C79"]
[WhiteElo "2216"]
[BlackElo "2577"]
[Annotator "TA"]
[PlyCount "114"]
[EventDate "2024.07.02"]
[EventType "swiss"]
[EventCountry "SRB"]
[SourceTitle "playchess.com"]
[Source "ChessBase"]
[SourceQuality "1"]
[TimeControl "5400+30"]

{[%evp 18,114,0,9,0,11,17,6,8,0,0,0,0,0,0,0,13,0,0,0,17,15,15,-22,-18,-42,-17,-10,-16,-11,-12,-24,-29,-24,-12,-35,-31,-45,-45,-46,-38,-32,-42,-54,-56,-63,-62,-62,-58,-56,-56,-71,-43,-48,-51,-90,-73,-118,-111,-208,-115,-268,-280,-390,-460,-613,-615,-1090,-1100,-29988,-29989,-29989,-547,-522,-404,-399,-389,-377,-350,-400,-375,-375,-375,-379,-379,-909,-844,-857,-857,-792,-696,-927,-926,-860,-841,-866,-842,-960,-850]} 1. e4 {[%emt 1:31:00]} e5 {[%emt 1:31:00]} 2. Nf3 {[%emt 0:00:30]} Nc6 {[%emt 0:00:30]} 3. Bb5 {[%emt 0:00:30]} a6 {[%emt 0:00:30]} 4. Ba4 {[%emt 0:00:30]} Nf6 {[%emt 0:00:30]} 5. O-O {[%emt 0:00:30]} d6 {[%emt 0:00:30]} 6. d4 {[%emt 0:00:30]} b5 {[%emt 0:00:30]} 7. dxe5 {[%emt 0:00:30]} dxe5 {[%emt 0:00:30]} 8. Bb3 {[%emt 0:00:30] C79: Ruy Lopez: Steinitz-type lines with 3...a6 4 Ba4 Nf6 5 0-0 d6.} Bd6 {[%emt 0:00:30]} 9. a4 {[%emt 0:00:30]} Rb8 $146 {[%emt 0:00:30]} ({Predecessor:} 9... b4 10. Nbd2 O-O 11. Re1 Re8 12. Nc4 Bg4 13. Nxd6 cxd6 14. c3 bxc3 15. bxc3 Qc7 {0-1 Rosselli del Turco,S-Reggio,A Bologna 1913 (9)}) 10. axb5 {[%emt 0:00:30]} axb5 {[%emt 0:00:30]} 11. h3 {[%emt 0:00:30]} O-O {[%emt 0:00:30]} 12. Re1 {[%emt 0:00:30]} h6 {[%emt 0:00:30]} 13. Nbd2 {[%emt 0:00:30]} Bb7 {[%emt 0:00:30]} 14. c3 {[%emt 0:00:30]} Ra8 {[%emt 0:00:30]} 15. Rxa8 {[%emt 0:00:30]} Qxa8 {[%emt 0:00:30]} 16. Bc2 {[%emt 0:00:30]} Re8 {[%emt 0:00:30]} 17. b4 {[%emt 0:00:30]} Ne7 {[%emt 0:00:30]} 18. Qe2 {[%emt 0:00:30]} Bc6 {[%emt 0:00:30]} 19. Nb3 {[%emt 0:00:30]} Ng6 {[%emt 0:00:30]} 20. g3 {[%emt 0:00:30]} Bd7 {[%emt 0:00:30]} 21. Kh2 {[%emt 0:00:30]} Qc8 {[%emt 0:00:30]} 22. Ng1 {[%emt 0:00:30]} c5 {[%emt 0:00:30]} 23. bxc5 {[%emt 0:00:30]} Bxc5 {[%emt 0:00:30]} 24. Nxc5 {[%emt 0:00:30]} Qxc5 {[%emt 0:00:30]} 25. Qe3 {[%emt 0:00:30]} Qc8 {[%emt 0:00:30]} 26. Bd1 {[%emt 0:00:30]} Qa6 {[%emt 0:00:30]} 27. Bf3 {[%emt 0:00:30]} Rc8 {[%emt 0:00:30]} 28. Bd2 {[%emt 0:00:30]} Be6 {[%emt 0:00:30]} 29. Rb1 {[%emt 0:00:30]} Ne8 {[%emt 0:00:30]} 30. Qe1 {[%emt 0:00:30]} Nd6 {[%emt 0:00:30]} 31. Ra1 {[%emt 0:00:30]} Qc6 {[%emt 0:00:30]} 32. Bg2 {[%emt 0:00:30]} Nc4 {[%emt 0:00:30]} 33. Bc1 {[%emt 0:00:30]} Nb6 {[%emt 0:00:30]} 34. Bd2 {[%emt 0:00:30]} Qc7 {[%emt 0:00:30]} 35. Rb1 {[%emt 0:00:30]} Bc4 {[%emt 0:00:30]} 36. Bf1 {[%emt 0:00:30]} Qc6 {[%emt 0:00:30]} 37. Bxc4 {[%emt 0:00:30]} Nxc4 {[%emt 0:00:30]} (37... Qxc4 38. Be3 Na4 39. Ne2 $16) 38. Rb4 {[%emt 0:00:30]} (38. Nf3 $17) 38... Nf8 {[%emt 0:00:30]} (38... Ra8 $19 {White must now prevent ...Ra2.} 39. Nf3 Ra2) 39. h4 $2 {[%emt 0:00:30]} (39. Be3 $17 {was worth a try.}) 39... Nd7 {[%emt 0:00:30]} 40. Be3 {[%emt 0:00:30]} Qxe4 {[%emt 0:00:30]} 41. Rxb5 {[%emt 0:00:30]} Nf6 {[%emt 0:00:30]} 42. Bd2 {[%emt 0:00:30]} Qc6 {[%emt 0:00:30]} 43. Rb4 {[%emt 0:00:30]} Ng4+ {[%emt 0:00:30]} 44. Kh3 {[%emt 0:00:30]} Qd7 {[%emt 0:00:30]} (44... Qh1+ $142 45. Kxg4 f5+ (45... Nxd2 46. Qxd2 Qxg1 47. Qd7 $11) 46. Kxf5 Qd5 47. h5 Qd7+ (47... Nxd2 $2 48. Kg4 $19) 48. Ke4 Nxd2+ 49. Qxd2 Qxd2 50. f4 Qxc3 (50... Rxc3 {gets mated.} 51. Kxe5 Re3+ 52. Re4 Qc3+ 53. Ke6 Qc6+ 54. Kf5 Qd7+ 55. Ke5 Rd3 56. Rd4 Rxd4 57. f5 Qd6#) 51. Rb6 Qd4+ (51... Qxg3 52. Ne2 Rc4+ 53. Kd5 Qd3+ 54. Ke6 exf4 55. Rb8+ Kh7 56. Rb5 Rc6+ 57. Ke5 Qxb5+ 58. Kd4 Qxe2 59. Kd5 Qe6+ 60. Kd4 Rc7 61. Kd3 Qe3#) 52. Kf5 Qxb6 53. Nh3 Qe3 54. Ng5 exf4 (54... hxg5 55. h6 Rf8+ 56. Kg4 Qe2+ 57. Kxg5 gxh6+ 58. Kh4 Rf5 59. fxe5 Rh5#) 55. Ne6 fxg3 56. Nxg7 Rc5+ 57. Kg4 g2 (57... Kxg7 $2 58. Kh3 Qf3 59. Kh4 Rxh5#) (57... Rg5+ $2 58. Kh4 Qe4+ 59. Kh3 Qh1#) 58. Ne6 g1=Q+ 59. Kh4 Qgg3#) 45. Kg2 $19 {[%emt 0:00:30]} Nxd2 {[%emt 0:00:30]} (45... Qxd2 46. Qxd2 Nxd2 47. Rxg4 $19) 46. Rxg4 {[%emt 0:00:30]} Qxg4 {[%emt 0:00:30]} 47. Qxd2 {[%emt 0:00:30]} Qc4 {[%emt 0:00:30]} 48. Ne2 {[%emt 0:00:30]} Qe4+ {[%emt 0:00:30]} 49. f3 {[%emt 0:00:30]} Qc4 {[%emt 0:00:30]} 50. Qe3 {[%emt 0:00:30]} Qd5 {[%emt 0:00:30]} 51. Qe4 $2 {[%emt 0:00:30]} (51. Kf2) 51... Qxe4 $19 {[%emt 0:00:30]} 52. fxe4 {[%emt 0:00:30]} h5 {[%emt 0:00:30]} 53. Kf3 {[%emt 0:00:30]} Kf8 {[%emt 0:00:30]} 54. Ke3 {[%emt 0:00:30]} Ke7 {[%emt 0:00:30]} 55. Kd3 {[%emt 0:00:30]} Rd8+ {[%emt 0:00:30]} 56. Ke3 {[%emt 0:00:30]} Rd1 {[%emt 0:00:30]} 57. Kf2 {[%emt 0:00:30]} Rd3 {[%emt 0:00:30]} 0-1